Cogmind - Beta 13 @@@ ROGUE MODE // 2024.05.26 @ 02:56:20 Player: Hellcelot Result: Destroyed self with Rocket Launcher Performance ------------- Evolutions (0) 0 Regions Visited (3) 600 Robots Destroyed (36) 180 Value Destroyed (850) 850 Prototype IDs (0) 0 Alien Tech Used (0) 0 Bonus (0) 0 TOTAL SCORE: 1630 Bonus ------- None Cogmind --------- Core Integrity 0/250 Matter 244/300 Energy 89/100 System Corruption 0% Temperature Cool (0) Movement Rolling (110) Location -10/Subcaves Parts ------- > --- POWER (1) -------- (None) > --- PROPULSION (2) --- Subdweller Monowheel > --- UTILITY (2) ------ Structural Scanner Subdweller Optics > --- WEAPON (2) ------- Rocket Launcher Subdweller Shrapnel Launcher > --- INVENTORY (5) ---- Mining Laser Mining Claw Peak State ------------ > --- POWER ------------ Subdweller Power Source > --- PROPULSION ------- Subdweller Monowheel > --- UTILITY ---------- Structural Scanner Subdweller Optics > --- WEAPON ----------- Rocket Launcher Subdweller Shrapnel Launcher > --- INVENTORY -------- Battle Rifle Mining Laser Mining Claw [Rating: 11] Favorites ----------- Power Ion Engine Engine Ion Engine Propulsion Wheel Treads Light Treads Wheel Wheel Hover Unit Hover Unit Utility Huge Storage Unit Device Structural Scanner Storage Huge Storage Unit Processor Terrain Scan Processor Protection Scrap Shield Weapon Light Cannon Energy Gun Particle Gun Energy Cannon Beam Cannon Ballistic Gun Assault Rifle Ballistic Cannon Light Cannon Launcher Grenade Launcher Special Weapon Mining Laser Slashing Weapon Mining Claw Build | -11 -10 -10 -10 ------- Run | Yrd Mat Min Sub Slots Evolved . | . . . . Power . | . . . . Propulsion . | . . . . Utility . | . . . . Weapon . | . . . . Parts Attached 51 | 4 28 3 16 Power 7 | 1 4 . 2 Engine 7 | 1 4 . 2 Core . | . . . . Reactor . | . . . . Propulsion 14 | 2 8 . 4 Treads 5 | 2 1 . 2 Leg . | . . . . Wheel 7 | . 5 . 2 Hover 2 | . 2 . . Flight . | . . . . Utility 9 | 1 5 . 3 Device 4 | . 2 . 2 Storage 3 | 1 2 . . Processor 1 | . 1 . . Hackware . | . . . . Protection 1 | . . . 1 Artifact . | . . . . Weapon 21 | . 11 3 7 Energy Gun 4 | . 4 . . Energy Cannon 1 | . . 1 . Ballistic Gun 3 | . 2 . 1 Ballistic Cannon 2 | . 2 . . Launcher 7 | . 1 2 4 Special Weapon 1 | . . . 1 Impact Weapon . | . . . . Slashing Weapon 3 | . 2 . 1 Piercing Weapon . | . . . . Special Melee Weapon . | . . . . Unidentified Prototypes . | . . . . Parts Lost 8 | . 5 . 3 Power 1 | . 1 . . Propulsion 4 | . 2 . 2 Utility 1 | . . . 1 Weapon 2 | . 2 . . Highest Loss Streak 3 | . 2 . 3 To Critical Strikes . | . . . . Average Slot Usage (%) 83 | . 88 71 65 Engine 9 | . 10 . 5 Treads 9 | . 12 . 2 Wheel 12 | . 11 28 13 Device 8 | . 6 14 14 Storage 15 | . 19 . . Energy Gun 3 | . 4 . . Ballistic Gun 4 | . 5 . 2 Ballistic Cannon 6 | . 8 18 . Launcher 7 | . 3 4 22 Slashing Weapon 1 | . 2 . . Naked Turns . | . . . . Heaviest Build 93 | 8 93 8 25 Greatest Support 40 | 40 40 20 20 Greatest Overweight (x) 29 | . 29 . 3 Average Overweight (x) 2 | . 3 . . Largest Inventory Capacity 25 | 8 25 5 5 Average Capacity 18 | 7 23 5 5 Most Carried 9 | 6 9 5 5 Average Carried 4 | 4 4 4 2 Final Capacity 8 | 8 5 5 5 Final Carried 6 | 6 4 5 2 Class Distribution -------------------- 71% | Mutant 28% | Scavenger-Mutant Dominant Class ---------------- Mutant | -10/Materials Mutant | -10/Mines Mutant | -10/Subcaves Resources | -11 -10 -10 -10 ----------- Run | Yrd Mat Min Sub Matter Collected 1226 | 193 699 3 331 Remotely . | . . . . Salvage Created 986 | . 847 3 136 Parts 71 | . 59 4 8 Haulers Intercepted 1 | . 1 . . Recyclers Shooed . | . . . . Parts Field Recycled . | . . . . Retrieved Matter . | . . . . Parts Self-Destructed 11 | . . . 11 Prevented . | . . . . Kills | -11 -10 -10 -10 ------- Run | Yrd Mat Min Sub Combat Hostiles Destroyed 23 | . 18 . 5 Guns 10 | . 10 . . Cannons 3 | . 2 . 1 AOE 10 | . 6 . 4 Classes Destroyed 10 | . 9 . 1 Worker 2 | . 2 . . Builder 2 | . 2 . . Tunneler 2 | . 1 1 . Hauler 1 | . 1 . . Recycler 2 | . 2 . . Operator 1 | . 1 . . Watcher 3 | . 3 . . Swarmer 5 | . 3 . 2 Grunt 15 | . 15 . . Subdweller 3 | . . . 3 Best Kill Streak 3 | . 3 1 3 Combat Bots Only 3 | . 3 . 3 Max Kills in Single Turn 2 | . 2 1 1 Gunslinging 1 | . 1 . . Exploded 2 | . 2 . 1 Melee . | . . . . Uniques/NPCs Destroyed . | . . . . Combat | -11 -10 -10 -10 -------- Run | Yrd Mat Min Sub Hostile Shots Fired 117 | . 86 . 31 Missed 32 | . 23 . 9 Damage Taken 1371 | . 842 . 529 Core 255 | . 157 . 98 Absorbed by Shields . | . . . . Regen/Repaired (Parts) 11 | . 11 . . Core Remaining (%) 100 | 100 . . . Volleys Fired 81 | . 68 1 12 Largest 2 | . 2 2 2 Hottest 93 | . 85 93 93 Shots Fired 130 | . 105 2 23 Gun 74 | . 73 . 1 Cannon 30 | . 22 1 7 Launcher 26 | . 10 1 15 Special . | . . . . Kinetic 60 | . 55 . 5 Thermal 39 | . 31 1 7 Explosive 22 | . 10 1 11 Electromagnetic 9 | . 9 . . Robot Hit Streak 13 | . 13 . 1 Robot Miss Streak 5 | . 3 2 5 Penetration Max . | . . . . Secondary Targets 2 | . 2 . . Max Gunslinging Chain 1 | . 1 . . Shots Hit Robots 73 | . 69 . 4 Core Hits 51 | . 41 1 9 Critical Kills . | . . . . Critical Parts Destroyed . | . . . . Critical Strikes 3 | . 3 . . Burn 2 | . 2 . . Blast 1 | . 1 . . Melee Attacks . | . . . . Impact . | . . . . Slashing . | . . . . Piercing . | . . . . Sneak Attacks . | . . . . Combat Hostiles . | . . . . Follow-up Attacks . | . . . . Damage Inflicted 2313 | . 1549 49 715 Guns 729 | . 729 . . Cannons 264 | . 211 . 53 Explosions 1319 | . 608 49 662 Melee . | . . . . Ramming 1 | . 1 . . Kinetic 640 | . 543 . 97 Thermal 348 | . 295 . 53 Explosive 1222 | . 608 49 565 Electromagnetic 102 | . 102 . . Impact . | . . . . Slashing . | . . . . Piercing . | . . . . Highest Corruption . | . . . . Average Corruption . | . . . . Corruption Purged . | . . . . Corruption Blocked . | . . . . Overload Shots . | . . . . Overflow Damage 38 | . 27 . 11 Projectiles . | . . . . Explosions 38 | . 27 . 11 Melee . | . . . . Knockbacks 3 | . 3 . . Impact . | . . . . Kinetic 3 | . 3 . . Secondary . | . . . . Self-Inflicted Damage 212 | . 128 . 84 Shots 7 | . 4 . 3 Rammed 1 | . 1 . . Targets Rammed 1 | . 1 . . Kicked . | . . . . Crushed . | . . . . Highest Temperature 204 | . 204 18 . Average Temperature 56 | . 56 12 . Received Heat Transfer 414 | . 348 . 66 Siege Activations . | . . . . Robots Corrupted . | . . . . Combat Hostiles . | . . . . Parts Fried . | . . . . Impact Corruptions . | . . . . Robots Melted . | . . . . Combat Hostiles . | . . . . Parts Melted . | . . . . Heat Transferred 976 | . 865 . 111 Parts Sabotaged . | . . . . Parts Stolen . | . . . . Parts Stripped . | . . . . Power Chain Reactions . | . . . . Alert | -11 -10 -10 -10 ------- Run | Yrd Mat Min Sub Peak Influence 209 | . 209 37 . Initial 27 | . . 27 . Average 89 | . 92 28 . Maximum Alert Level 1 | . 1 . . Low Security (%) 99 | 100 99 100 . Level 1 . | . . . . Level 2 . | . . . . Level 3 . | . . . . Level 4 . | . . . . Level 5 . | . . . . High Security . | . . . . Max Security . | . . . . Squads Dispatched 5 | . 5 . . Investigation 3 | . 3 . . Extermination . | . . . . Reinforcement 2 | . 2 . . Assault . | . . . . Garrison . | . . . . Intercept . | . . . . Searches Triggered . | . . . . Construction Impeded . | . . . . Haulers Reinforced . | . . . . Active Scanning Responses . | . . . . Cargo Convoy Interrupts . | . . . . Stealth | -11 -10 -10 -10 --------- Run | Yrd Mat Min Sub Distress Signals 1 | . 1 . . Communications Jammed . | . . . . Distress Signals . | . . . . Times Spotted 45 | . 27 . 18 Peak Tracking Total 5 | . 3 . 5 Tactical Retreats . | . . . . Traps | -11 -10 -10 -10 ------- Run | Yrd Mat Min Sub Traps Triggered 3 | . 3 . . Indirectly . | . . . . Trap Hack Attempts . | . . . . Triggered . | . . . . Disarmed . | . . . . Reprogrammed . | . . . . Reused . | . . . . Traps Extracted . | . . . . Installed . | . . . . Triggered . | . . . . Machines | -11 -10 -10 -10 ---------- Run | Yrd Mat Min Sub Machines Disabled 4 | . 4 . . Max in Single Turn 2 | . 2 . . Machines Repaired . | . . . . Machines Dismantled . | . . . . Machines Sabotaged . | . . . . Overloaded Fab Kills . | . . . . Hacking | -11 -10 -10 -10 --------- Run | Yrd Mat Min Sub Machines Accessed 4 | . 4 . . Terminals 1 | . 1 . . Fabricators . | . . . . Repair Stations 1 | . 1 . . Recycling Units 2 | . 2 . . Scanalyzers . | . . . . Garrison Access . | . . . . Total Hacks 11 | . 11 . . Successful 9 | . 9 . . Failed 2 | . 2 . . Catastrophic . | . . . . Database Lockouts . | . . . . Manual . | . . . . Terminals 1 | . 1 . . Fabricators . | . . . . Repair Stations 2 | . 2 . . Recycling Units 8 | . 8 . . Scanalyzers . | . . . . Garrison Access . | . . . . Terminal Hacks 1 | . 1 . . Alert Level 1 | . 1 . . Fabricator Hacks . | . . . . Repair Station Hacks 2 | . 2 . . Scan Component 1 | . 1 . . Repair 1 | . 1 . . Recycling Unit Hacks 6 | . 6 . . Recycle Component 3 | . 3 . . Process 2 | . 2 . . Retrieve Matter 1 | . 1 . . Scanalyzer . | . . . . Garrison Access Hacks . | . . . . Unauthorized Hacks . | . . . . Terminals . | . . . . Fabricators . | . . . . Repair Stations . | . . . . Recycling Units . | . . . . Scanalyzers . | . . . . Garrison Access . | . . . . Data Cores Recovered . | . . . . Used . | . . . . Hacking Detections 2 | . 2 . . Full Trace Events . | . . . . Feedback Events . | . . . . Feedback Blocked . | . . . . Robot Schematics Acquired . | . . . . Robots Built . | . . . . Authchips . | . . . . Time . | . . . . Total Robot Build Rating . | . . . . Part Schematics Acquired . | . . . . Parts Built . | . . . . Authchips . | . . . . Time . | . . . . Total Part Build Rating . | . . . . Parts Repaired 1 | . 1 . . Time 26 | . 26 . . Parts Recycled 3 | . 3 . . Recycled Matter 181 | . 181 . . Retrieved Matter . | . . . . Retrieved Components . | . . . . Parts Scanalyzed . | . . . . Part Schematics Acquired . | . . . . Parts Damaged . | . . . . Bothacking | -11 -10 -10 -10 ------------ Run | Yrd Mat Min Sub Used RIF Installer . | . . . . Robots Hacked . | . . . . Non-combat . | . . . . Combat . | . . . . Robot Hacks Applied . | . . . . Relay Couplers Released . | . . . . Fabnet Peak Effective % . | . . . . Robots Rewired . | . . . . Allies Hacked . | . . . . Hacks Repelled . | . . . . Allies | -11 -10 -10 -10 -------- Run | Yrd Mat Min Sub Total Allies . | . . . . Largest Group . | . . . . Highest-Rated Group . | . . . . Highest-Rated Ally . | . . . . Total Orders . | . . . . Ally Attacks . | . . . . Total Damage . | . . . . Kills . | . . . . Allies Corrupted . | . . . . Allies Melted . | . . . . Intel | -11 -10 -10 -10 ------- Run | Yrd Mat Min Sub Robot Analysis Total . | . . . . Derelict Logs Recovered . | . . . . Drone Launches . | . . . . Drone Recoveries . | . . . . Exploration | -11 -10 -10 -10 ------------- Run | Yrd Mat Min Sub Turns Passed 5367 | 94 4089 67 1117 Spaces Moved 2893 | 62 1832 74 925 Core 64 | 16 10 . 38 Treads 707 | 46 633 . 28 Legs . | . . . . Wheels 2122 | . 1189 74 859 Hover . | . . . . Flight . | . . . . Fastest Speed 50 | 50 80 80 80 Average Speed 172 | 131 207 80 113 Slowest Speed 1500 | 160 1500 80 200 Overloaded Moves . | . . . . Propulsion Burnouts . | . . . . Robots Hopped . | . . . . Cave-ins Triggered . | . . . . Exploration Rate (%) 39 | 4 101 17 34 Regions Visited 3 Branch Regions 2 Pre-discovered Areas . | . . . . Known Exits Taken . | . . . . Unknown Exits Taken 3 | 1 1 1 . Scrap Searched . | . . . . Spaces Dug . | . . . . Terrain Destroyed 191 | . 70 8 113 Melee . | . . . . Projectile . | . . . . AOE 191 | . 70 8 113 Terrain Rammed . | . . . . Walls Destroyed . | . . . . Machines Disabled . | . . . . Actions | -11 -10 -10 -10 --------- Run | Yrd Mat Min Sub Total 3138 | 75 2012 78 973 Wait 27 | . 27 . . Move 2890 | 61 1831 73 925 Hop . | . . . . Pick Up 52 | 10 32 . 10 Fast Attach 1 | . . 1 . Attach 23 | 4 11 . 8 Detach 2 | . 1 1 . Swap 27 | . 17 2 8 Drop 34 | . 24 . 10 Fire 81 | . 68 1 12 Melee . | . . . . Ram . | . . . . Kick . | . . . . Crush 1 | . 1 . . Escape Stasis . | . . . . Rewire . | . . . . Trap . | . . . . Miscellaneous . | . . . . Route ------- -11/Scrapyard -10/Materials (discovered 5 exits: [*Mat x3] / [*Min] / [*Sub]) -10/Mines -10/Subcaves History --------- Turn | Location | Event 4 | -11/Scrapyard | Discovered new exit (range 16) 95 | -11/Scrapyard | Entered Materials 312 | -10/Materials | Build established: Mutant 701 | -10/Materials | Discovered new exit (range 6) 1058 | -10/Materials | Discovered new exit (range 10) 1550 | -10/Materials | Core integrity fell below 50% 2133 | -10/Materials | Discovered new exit (range 9) 2728 | -10/Materials | Repaired Wheel 3106 | -10/Materials | Discovered new exit (range 3) 3276 | -10/Materials | Build established: Scavenger-Mutant 3565 | -10/Materials | Discovered new exit (range 15) 4184 | -10/Materials | Entered Mines 4225 | -10/Mines | Received a Rocket Launcher from a helpful Derelict 4242 | -10/Mines | Discovered new exit (range 9) 4251 | -10/Mines | Entered Subcaves 4323 | -10/Subcaves | Ambushed by swarm of Subdwellers 4348 | -10/Subcaves | Ambushed by Subdweller buried in earth 4357 | -10/Subcaves | Core integrity fell below 20% 4388 | -10/Subcaves | Lost 3 parts (2n1u) 4430 | -10/Subcaves | Build established: Mutant 4665 | -10/Subcaves | A swath of the cavern ceiling suddenly collapsed 4778 | -10/Subcaves | A swath of the cavern ceiling suddenly collapsed 5237 | -10/Subcaves | Build established: Scavenger-Mutant 5368 | -10/Subcaves | Destroyed self with Rocket Launcher Last Messages --------------- Subatomizers dissect the Disposable Heat Sink, destroying it. Subatomizers dissect the Disposable Heat Sink. Subatomizers dissect the Sub. Monowheel. Acquired Sub. Optics. Acquired 10 matter. Q6-XLY(u) tweaks Twisted Machinery. DZ-HFG(R): "WEHOME!" DZ-HFG(R) suffers critical hit (Destroy). The unstable cave ceiling collapses. Acquired 12 matter. Acquired 50 matter. Acquired Sub. Power Source. Dropped Battle Rifle. Acquired 5 matter. Sub. Power Source shoots sparks and powers down. Dropped Broken Sub. Power Source. Subatomizers dissect the Sub. Optics. Q6-XLY(u) tweaks Twisted Machinery. Map ----- +----------------------------------------------------+ | ########## ##### &%! ###????????????????? | | ##### ## #### ## # ####???????????????? | | #### ###### #### ####??????????????? | | #### !!##### ###### ###??????????????? | | #### *! ##### ##### ##??????????????? | | [ #### # #### ##??????????????? | | ####### ### ####??????????????? | | ##?### #####??????????????? | | "##### ######???????????????? | | "##### #### #######??????????????? | | ""#### ##### ###??????????????? | | #### ###?????????????? | | # ## ###?????????????? | | ## ####### ##?????????????? | | # # ######### ###?????????????? | | ## # # ##??## # ###?????????????? | | " # # ## ###### ##?????????????? | | " ## ###### ##?????????????? | | #"# # # # ##?????????????? | | ## ###### ## ###?????????????? | | ## ####### ## ###?????????????? | | ####### # # ## " ###?????????????? | | ##### h" " u"""""###????????????? | | ######## " "" "###????????????? | | # ######### ##### g """"" ##????????????? | | # ###???### ####### @ " ######????????????? | | # ###???## ###?### ##########????????????? | | ## ###??### #???### #######????????????????? | | ### ##??########???#######????????????????????? | | #### ##???#######????#####?????????????????????? | | ??### ##????????????????????????????????????????? | | ???#####????????????????????????????????????????? | | ????####????????????????????????????????????????? | | ????????????????????????????????????????????????? | | ????????????????????????????????????????????????? | | ????????????????????????????????????????????????? | | ????????????????????????????????????????????????? | | ????????????????????????????????????????????????? | | ????????????????????????????????????????????????? | | ????????????????????????????????????????????????? | | ????????????????????????????????????????????????? | | ????????????????????????????????????????????????? | | ????????????????????????????????????????????????? | | ????????????????????????????????????????????????? | | ????????????????????????????????????????????????? | | ????????????????????????????????????????????????? | | | | | | | | | +----------------------------------------------------+ Best States ------------- Heat Dissipation 39 Energy Generation 15 Energy Capacity 250 Matter Stores 400 Matter Capacity 400 Sight Range 21 Terrain Scan Density 85 Armor Coverage 800 Evasion (%) 50 Recoil Reduction 2 Item Schematics ----------------- None Robot Schematics ------------------ None Fabricated ------------ Nothing Alien Tech Used ----------------- None Achievements -------------- Let's See Who's Tougher Loot Pinata Challenges ------------ None Game ------ Seed ReinforcedReactiveCapacitor Manual? 0 Play Time 00:45:22 Cumulative 1.4 hours Start 2024.04.03 @ 22:02:59 End 2024.05.26 @ 02:56:20 Sessions 7 Manual Loads 0 Difficulty Rogue Special Mode None Game No. 2 Rogue 2 Adventurer 0 Explorer 0 Win Type - Total 0 Types 0/0/0/0/0/0/0/0/0 Lore% 0 Gallery% 5 Achievement% 4 Wizard Run 0 Options --------- Layout 1 ASCII 0 Keyboard 0 Movement Mouse Keybinds 0 Fullscreen 2 Font 24/Smallcaps Map View 50x35 Zoom Use 0% Tactical HUD 0 Map Filters NONE Filters NONE Steam 1 RUN: 9bf3bd33-2a02-4ad8-a2b0-fabe767f14be